[Event "Live Chess"]
[Site "Chess.com"]
[Date "2023.05.21"]
[Round "-"]
[White "manthanit"]
[Black "tpm07"]
[Result "0-1"]
[WhiteElo "1095"]
[BlackElo "1930"]
[TimeControl "300"]
[EndTime "5:03:15 PDT"]
[Termination "tpm07 won by resignation"]

1. e4 {[%clk 0:04:54.9]} 1... e5 {[%clk 0:04:54.6]} 2. h3 {[%clk 0:04:52.2]}
2... Nf6 {[%clk 0:04:52.6]} 3. Nc3 {[%clk 0:04:49.4]} 3... Bc5 {[%clk
0:04:51.5]} 4. Nf3 {[%clk 0:04:48.5]} 4... O-O {[%clk 0:04:49.9]} 5. Bc4 {[%clk
0:04:44.9]} 5... d6 {[%clk 0:04:42.5]} 6. d3 {[%clk 0:04:43.5]} 6... Be6 {[%clk
0:04:41.4]} 7. Nd5 {[%clk 0:04:40]} 7... c6 {[%clk 0:04:34.1]} 8. Nxf6+ {[%clk
0:04:38.4]} 8... Qxf6 {[%clk 0:04:33.1]} 9. O-O {[%clk 0:04:36.4]} 9... h6
{[%clk 0:04:25.7]} 10. Be3 {[%clk 0:04:34.7]} 10... Nd7 {[%clk 0:04:23.2]} 11.
Bxc5 {[%clk 0:04:33.4]} 11... Nxc5 {[%clk 0:04:20.6]} 12. Qe2 {[%clk 0:04:09.5]}
12... Bxc4 {[%clk 0:04:16.5]} 13. dxc4 {[%clk 0:04:08.4]} 13... Ne6 {[%clk
0:04:15.8]} 14. Rad1 {[%clk 0:04:04.6]} 14... Nf4 {[%clk 0:04:14.1]} 15. Qe3
{[%clk 0:03:50.9]} 15... Qg6 {[%clk 0:04:02.3]} 16. Nh4 {[%clk 0:03:47.6]} 16...
Qg5 {[%clk 0:04:00.8]} 17. Qg3 {[%clk 0:03:45.4]} 17... Ne2+ {[%clk 0:03:58.6]}
18. Kh2 {[%clk 0:03:35.2]} 18... Nxg3 {[%clk 0:03:55.2]} 19. fxg3 {[%clk
0:03:34.8]} 19... Rad8 {[%clk 0:03:53]} 20. Rd3 {[%clk 0:03:25.2]} 20... d5
{[%clk 0:03:47.2]} 21. cxd5 {[%clk 0:03:23.5]} 21... cxd5 {[%clk 0:03:46.2]} 22.
Rf5 {[%clk 0:03:22]} 22... Qc1 {[%clk 0:03:38.5]} 23. exd5 {[%clk 0:03:15.8]}
23... e4 {[%clk 0:03:34.7]} 24. Re3 {[%clk 0:03:13.6]} 24... Qxe3 {[%clk
0:03:32.4]} 0-1

[Event "Live Chess"]
[Site "Chess.com"]
[Date "2023.05.21"]
[Round "-"]
[White "ChessTWSS"]
[Black "KeithArkell"]
[Result "0-1"]
[WhiteElo "1611"]
[BlackElo "2488"]
[TimeControl "300"]
[EndTime "5:03:21 PDT"]
[Termination "KeithArkell won on time"]

1. d4 {[%clk 0:04:57.6]} 1... e6 {[%clk 0:04:59.1]} 2. Bf4 {[%clk 0:04:54.9]}
2... Nf6 {[%clk 0:04:57.8]} 3. Nf3 {[%clk 0:04:47.5]} 3... c5 {[%clk 0:04:56.7]}
4. c3 {[%clk 0:04:42.7]} 4... b6 {[%clk 0:04:54.5]} 5. e3 {[%clk 0:04:39.8]}
5... Be7 {[%clk 0:04:52.4]} 6. Bd3 {[%clk 0:04:34.2]} 6... Ba6 {[%clk
0:04:50.7]} 7. Bxa6 {[%clk 0:04:29.6]} 7... Nxa6 {[%clk 0:04:49.8]} 8. Nbd2
{[%clk 0:04:24.9]} 8... Nc7 {[%clk 0:04:48.7]} 9. Ne5 {[%clk 0:04:18.2]} 9...
Ncd5 {[%clk 0:04:46.2]} 10. Bg3 {[%clk 0:04:04.8]} 10... Qc8 {[%clk 0:04:44]}
11. e4 {[%clk 0:04:00.8]} 11... Nc7 {[%clk 0:04:39.6]} 12. O-O {[%clk
0:03:55.3]} 12... Qb7 {[%clk 0:04:37.9]} 13. f3 {[%clk 0:03:46.1]} 13... d6
{[%clk 0:04:37]} 14. Nec4 {[%clk 0:03:38.6]} 14... Rd8 {[%clk 0:04:33.7]} 15. e5
{[%clk 0:03:29.7]} 15... dxe5 {[%clk 0:04:31.6]} 16. dxe5 {[%clk 0:03:24.5]}
16... Nfd5 {[%clk 0:04:27.7]} 17. Nd6+ {[%clk 0:03:15.6]} 17... Bxd6 {[%clk
0:04:22.9]} 18. exd6 {[%clk 0:03:12.5]} 18... Na8 {[%clk 0:04:07]} 19. Qe2
{[%clk 0:03:02.6]} 19... b5 {[%clk 0:04:00.2]} 20. Ne4 {[%clk 0:02:55.7]} 20...
Qc6 {[%clk 0:03:53.4]} 21. h3 {[%clk 0:02:43.8]} 21... O-O {[%clk 0:03:51.9]}
22. b3 {[%clk 0:02:35.3]} 22... Nab6 {[%clk 0:03:50.6]} 23. c4 {[%clk
0:02:32.1]} 23... bxc4 {[%clk 0:03:45.2]} 24. bxc4 {[%clk 0:02:28.8]} 24... Nf6
{[%clk 0:03:29]} 25. Nxf6+ {[%clk 0:02:24.9]} 25... gxf6 {[%clk 0:03:28.5]} 26.
a3 {[%clk 0:02:13.3]} 26... e5 {[%clk 0:03:18.8]} 27. f4 {[%clk 0:02:07.7]}
27... Qxd6 {[%clk 0:02:51.9]} 28. fxe5 {[%clk 0:02:00.6]} 28... Qd4+ {[%clk
0:02:42.1]} 29. Kh1 {[%clk 0:01:54.4]} 29... fxe5 {[%clk 0:02:41.1]} 30. Bxe5
{[%clk 0:01:47.9]} 30... Rfe8 {[%clk 0:02:37.5]} 31. Bxd4 {[%clk 0:01:40.2]}
31... Rxe2 {[%clk 0:02:35.6]} 32. Bxc5 {[%clk 0:01:35.5]} 32... Rdd2 {[%clk
0:02:31.1]} 33. Rae1 {[%clk 0:01:26.6]} 33... Nxc4 {[%clk 0:01:52]} 34. Rxe2
{[%clk 0:01:21.2]} 34... Rxe2 {[%clk 0:01:51.1]} 35. Rf3 {[%clk 0:01:09.5]}
35... Re6 {[%clk 0:01:27.4]} 36. Bxa7 {[%clk 0:01:01.6]} 36... h5 {[%clk
0:01:23.2]} 37. Rg3+ {[%clk 0:00:54.5]} 37... Kh7 {[%clk 0:01:21.8]} 38. Rc3
{[%clk 0:00:45.8]} 38... Nd2 {[%clk 0:01:19.8]} 39. a4 {[%clk 0:00:24.2]} 39...
Re1+ {[%clk 0:01:09]} 40. Kh2 {[%clk 0:00:19.4]} 40... h4 {[%clk 0:01:06.6]} 41.
g3 {[%clk 0:00:17.4]} 41... Ne4 {[%clk 0:00:56.2]} 42. Rc7 {[%clk 0:00:15.1]}
42... hxg3+ {[%clk 0:00:55.1]} 43. Kg2 {[%clk 0:00:13]} 43... Kg6 {[%clk
0:00:53.5]} 44. Kf3 {[%clk 0:00:07.7]} 44... f5 {[%clk 0:00:51.1]} 45. Be3
{[%clk 0:00:02.2]} 45... Rf1+ {[%clk 0:00:45.7]} 0-1

[Event "Live Chess"]
[Site "Chess.com"]
[Date "2023.05.21"]
[Round "-"]
[White "viktorskliarov"]
[Black "Doge_Dandolo"]
[Result "1/2-1/2"]
[WhiteElo "2648"]
[BlackElo "1900"]
[TimeControl "300"]
[EndTime "5:03:24 PDT"]
[Termination "Game drawn by repetition"]

1. e4 {[%clk 0:04:57.1]} 1... c6 {[%clk 0:04:57.7]} 2. d4 {[%clk 0:04:54.8]}
2... d5 {[%clk 0:04:56.5]} 3. e5 {[%clk 0:04:52.8]} 3... Bf5 {[%clk 0:04:54.9]}
4. Nf3 {[%clk 0:04:51.6]} 4... e6 {[%clk 0:04:53.4]} 5. Be2 {[%clk 0:04:51.3]}
5... c5 {[%clk 0:04:51.1]} 6. Be3 {[%clk 0:04:48.8]} 6... cxd4 {[%clk
0:04:46.7]} 7. Nxd4 {[%clk 0:04:47]} 7... Ne7 {[%clk 0:04:43.8]} 8. O-O {[%clk
0:04:44.8]} 8... Nbc6 {[%clk 0:04:40.1]} 9. f4 {[%clk 0:04:43]} 9... Nxd4 {[%clk
0:04:37.9]} 10. Bxd4 {[%clk 0:04:41.8]} 10... Nc6 {[%clk 0:04:36.5]} 11. Bf2
{[%clk 0:04:19.7]} 11... Rc8 {[%clk 0:04:29.8]} 12. c3 {[%clk 0:04:18.1]} 12...
Be7 {[%clk 0:04:22.1]} 13. Nd2 {[%clk 0:04:16.2]} 13... h6 {[%clk 0:04:17.6]}
14. g4 {[%clk 0:04:05.2]} 14... Bh7 {[%clk 0:04:14.3]} 15. Nb3 {[%clk
0:03:55.5]} 15... O-O {[%clk 0:04:10.1]} 16. Nd4 {[%clk 0:03:54.5]} 16... Be4
{[%clk 0:04:03.8]} 17. Bf3 {[%clk 0:03:48.7]} 17... Bxf3 {[%clk 0:04:01]} 18.
Qxf3 {[%clk 0:03:46.3]} 18... Nxd4 {[%clk 0:03:58.7]} 19. Bxd4 {[%clk
0:03:40.1]} 19... a6 {[%clk 0:03:46.3]} 20. f5 {[%clk 0:03:35.4]} 20... b5
{[%clk 0:03:38.7]} 21. f6 {[%clk 0:03:31.4]} 21... gxf6 {[%clk 0:03:35.5]} 22.
exf6 {[%clk 0:03:28.1]} 22... Bc5 {[%clk 0:03:32.9]} 23. Bxc5 {[%clk 0:03:20.4]}
23... Rxc5 {[%clk 0:03:31.2]} 24. Qe3 {[%clk 0:03:14.4]} 24... Rc4 {[%clk
0:03:17.2]} 25. Rf4 {[%clk 0:02:40.3]} 25... Rxf4 {[%clk 0:03:12.2]} 26. Qxf4
{[%clk 0:02:38.4]} 26... Kh7 {[%clk 0:03:11.3]} 27. Rf1 {[%clk 0:02:01]} 27...
Rg8 {[%clk 0:03:05.4]} 28. h3 {[%clk 0:01:57.2]} 28... Rg6 {[%clk 0:03:01.5]}
29. Kh2 {[%clk 0:01:49.6]} 29... Qb6 {[%clk 0:02:51.5]} 30. h4 {[%clk
0:01:44.6]} 30... a5 {[%clk 0:02:40.8]} 31. a3 {[%clk 0:01:36.1]} 31... b4
{[%clk 0:02:26.3]} 32. axb4 {[%clk 0:01:31.9]} 32... axb4 {[%clk 0:02:25]} 33.
cxb4 {[%clk 0:01:31.4]} 33... d4 {[%clk 0:02:20.7]} 34. Qe4 {[%clk 0:01:03.9]}
34... Kh8 {[%clk 0:01:54.9]} 35. h5 {[%clk 0:00:59.1]} 35... Rg8 {[%clk
0:01:52.7]} 36. Rd1 {[%clk 0:00:50.8]} 36... Qxb4 {[%clk 0:01:43.6]} 37. Rxd4
{[%clk 0:00:49.8]} 37... Qxb2+ {[%clk 0:01:40.3]} 38. Kh3 {[%clk 0:00:49.3]}
38... Qc1 {[%clk 0:01:32.4]} 39. Qf4 {[%clk 0:00:41.5]} 39... Qh1+ {[%clk
0:01:25.6]} 40. Kg3 {[%clk 0:00:40.3]} 40... Qg1+ {[%clk 0:01:21.3]} 41. Kh3
{[%clk 0:00:38.4]} 41... Qh1+ {[%clk 0:01:11]} 42. Kg3 {[%clk 0:00:37.4]} 42...
Qe1+ {[%clk 0:01:07.5]} 43. Kh3 {[%clk 0:00:36.2]} 43... Qh1+ {[%clk 0:00:59.3]}
1/2-1/2

[Event "Live Chess"]
[Site "Chess.com"]
[Date "2023.05.21"]
[Round "-"]
[White "fazzik"]
[Black "GEMdzq"]
[Result "0-1"]
[WhiteElo "612"]
[BlackElo "2285"]
[TimeControl "300"]
[EndTime "5:03:27 PDT"]
[Termination "GEMdzq won by resignation"]

1. e3 {[%clk 0:04:55.6]} 1... e5 {[%clk 0:04:55.3]} 2. d4 {[%clk 0:04:53.7]}
2... Nc6 {[%clk 0:04:51.2]} 3. Ne2 {[%clk 0:04:52.7]} 3... d5 {[%clk 0:04:49.5]}
4. g3 {[%clk 0:04:47.6]} 4... Nf6 {[%clk 0:04:48.2]} 5. Bg2 {[%clk 0:04:46.8]}
5... Bb4+ {[%clk 0:04:45.9]} 6. c3 {[%clk 0:04:45.8]} 6... Be7 {[%clk
0:04:44.8]} 7. O-O {[%clk 0:04:44.2]} 7... O-O {[%clk 0:04:43.7]} 8. f4 {[%clk
0:04:35.2]} 8... exd4 {[%clk 0:04:37.7]} 9. Nxd4 {[%clk 0:04:31.7]} 9... Re8
{[%clk 0:04:30.7]} 10. Nd2 {[%clk 0:04:10.5]} 10... Bg4 {[%clk 0:04:18.8]} 11.
Bf3 {[%clk 0:04:00.9]} 11... Bd7 {[%clk 0:03:59]} 12. Bg2 {[%clk 0:03:53.8]}
12... Bd6 {[%clk 0:03:55.1]} 13. f5 {[%clk 0:03:42.7]} 13... Rxe3 {[%clk
0:03:50.5]} 14. N2b3 {[%clk 0:03:35.3]} 14... Re8 {[%clk 0:03:48.9]} 15. Bg5
{[%clk 0:03:28.2]} 15... h6 {[%clk 0:03:41.5]} 16. Bf4 {[%clk 0:03:20.4]} 16...
Ne5 {[%clk 0:03:29.1]} 17. Re1 {[%clk 0:03:09.9]} 17... c5 {[%clk 0:03:23.1]}
18. Nf3 {[%clk 0:02:59.6]} 18... Qc7 {[%clk 0:03:14.8]} 19. Bh3 {[%clk
0:02:45.8]} 19... Bc6 {[%clk 0:03:07.3]} 20. Re2 {[%clk 0:02:14]} 20... Nxf3+
{[%clk 0:03:05.3]} 0-1

[Event "Live Chess"]
[Site "Chess.com"]
[Date "2023.05.21"]
[Round "-"]
[White "Berdgross"]
[Black "Reggie016"]
[Result "1-0"]
[WhiteElo "682"]
[BlackElo "1072"]
[TimeControl "300"]
[EndTime "5:03:34 PDT"]
[Termination "Berdgross won by checkmate"]

1. d4 {[%clk 0:04:48.9]} 1... e6 {[%clk 0:04:58.9]} 2. e3 {[%clk 0:04:48]} 2...
d5 {[%clk 0:04:58.4]} 3. Nf3 {[%clk 0:04:47.6]} 3... Nf6 {[%clk 0:04:57.5]} 4.
Bd3 {[%clk 0:04:43]} 4... Bd6 {[%clk 0:04:56]} 5. O-O {[%clk 0:04:40.6]} 5... c5
{[%clk 0:04:55]} 6. dxc5 {[%clk 0:04:37.6]} 6... Bxc5 {[%clk 0:04:54]} 7. Re1
{[%clk 0:04:35.6]} 7... O-O {[%clk 0:04:52.7]} 8. Nc3 {[%clk 0:04:32.9]} 8... d4
{[%clk 0:04:51.3]} 9. exd4 {[%clk 0:04:30.8]} 9... Bxd4 {[%clk 0:04:50.6]} 10.
Be4 {[%clk 0:04:23.5]} 10... Bxc3 {[%clk 0:04:44.7]} 11. bxc3 {[%clk 0:04:19.3]}
11... Qxd1 {[%clk 0:04:42.5]} 12. Rxd1 {[%clk 0:04:13.2]} 12... Nxe4 {[%clk
0:04:42.3]} 13. Bf4 {[%clk 0:04:02.8]} 13... Nxc3 {[%clk 0:04:38.4]} 14. Rd3
{[%clk 0:03:48.3]} 14... Nd5 {[%clk 0:04:36.4]} 15. Bd2 {[%clk 0:03:43]} 15...
b6 {[%clk 0:04:32.2]} 16. Bb4 {[%clk 0:03:36.4]} 16... Rd8 {[%clk 0:04:29.9]}
17. Bc3 {[%clk 0:03:30.8]} 17... Ba6 {[%clk 0:04:25.7]} 18. Rdd1 {[%clk
0:03:17.8]} 18... Nxc3 {[%clk 0:04:24.5]} 19. Rxd8# {[%clk 0:03:15.2]} 1-0

[Event "Live Chess"]
[Site "Chess.com"]
[Date "2023.05.21"]
[Round "-"]
[White "Leonid_Starozhilov"]
[Black "GMHarry-youtube"]
[Result "1-0"]
[WhiteElo "2633"]
[BlackElo "2027"]
[TimeControl "300"]
[EndTime "5:03:36 PDT"]
[Termination "Leonid_Starozhilov won by resignation"]

1. e4 {[%clk 0:04:58.5]} 1... c5 {[%clk 0:04:57.7]} 2. Nf3 {[%clk 0:04:57.5]}
2... d6 {[%clk 0:04:54.7]} 3. Bb5+ {[%clk 0:04:56.1]} 3... Bd7 {[%clk
0:04:53.7]} 4. c4 {[%clk 0:04:54.7]} 4... a6 {[%clk 0:04:47.4]} 5. Bxd7+ {[%clk
0:04:53.5]} 5... Qxd7 {[%clk 0:04:47.3]} 6. Nc3 {[%clk 0:04:53]} 6... Nc6 {[%clk
0:04:46.9]} 7. d4 {[%clk 0:04:52]} 7... cxd4 {[%clk 0:04:45.8]} 8. Nxd4 {[%clk
0:04:51.8]} 8... Nf6 {[%clk 0:04:45.4]} 9. O-O {[%clk 0:04:50.6]} 9... g6 {[%clk
0:04:44.3]} 10. Nd5 {[%clk 0:04:49.9]} 10... Nxd5 {[%clk 0:04:40]} 11. exd5
{[%clk 0:04:48.6]} 11... Ne5 {[%clk 0:04:37.6]} 12. b3 {[%clk 0:04:41.7]} 12...
Bg7 {[%clk 0:04:35.5]} 13. h3 {[%clk 0:04:39.3]} 13... Qc7 {[%clk 0:04:29.5]}
14. Bb2 {[%clk 0:04:36.2]} 14... O-O {[%clk 0:04:28]} 15. Re1 {[%clk 0:04:35]}
15... Rfe8 {[%clk 0:04:24.6]} 16. a4 {[%clk 0:04:32.2]} 16... Rad8 {[%clk
0:04:07.3]} 17. a5 {[%clk 0:04:23.9]} 17... Nd7 {[%clk 0:04:05.5]} 18. Qc2
{[%clk 0:04:16.1]} 18... b5 {[%clk 0:03:47.6]} 19. axb6 {[%clk 0:04:06.7]} 19...
Nxb6 {[%clk 0:03:35.1]} 20. Nc6 {[%clk 0:04:04.2]} 20... Rd7 {[%clk 0:03:22]}
21. Bxg7 {[%clk 0:04:02.1]} 21... Kxg7 {[%clk 0:03:20.3]} 22. Rxa6 {[%clk
0:04:01.7]} 22... e6 {[%clk 0:03:13.1]} 23. Ra7 {[%clk 0:03:58.4]} 23... Qc8
{[%clk 0:03:09.4]} 24. Rxd7 {[%clk 0:03:47.2]} 24... Qxd7 {[%clk 0:03:09.3]} 25.
Qb2+ {[%clk 0:03:44.5]} 25... Kg8 {[%clk 0:03:06.1]} 26. Qd4 {[%clk 0:03:43.4]}
26... Nc8 {[%clk 0:02:50.5]} 27. Qf6 {[%clk 0:03:37.2]} 27... e5 {[%clk
0:02:46.6]} 28. c5 {[%clk 0:03:26.9]} 28... Ne7 {[%clk 0:02:23.4]} 29. Qxd6
{[%clk 0:03:15.5]} 29... Qxd6 {[%clk 0:02:21.1]} 30. cxd6 {[%clk 0:03:14.8]}
30... Nxd5 {[%clk 0:02:12.2]} 31. d7 {[%clk 0:03:12.7]} 31... Kf8 {[%clk
0:02:06.1]} 32. dxe8=R+ {[%clk 0:03:08.9]} 32... Kxe8 {[%clk 0:02:06]} 33. Rxe5+
{[%clk 0:03:07.4]} 1-0

[Event "Live Chess"]
[Site "Chess.com"]
[Date "2023.05.21"]
[Round "-"]
[White "McSlash1"]
[Black "Crowded_House"]
[Result "1-0"]
[WhiteElo "2004"]
[BlackElo "1629"]
[TimeControl "300"]
[EndTime "5:03:59 PDT"]
[Termination "McSlash1 won by resignation"]

1. e4 {[%clk 0:04:59.3]} 1... e6 {[%clk 0:04:58.9]} 2. d4 {[%clk 0:04:58.5]}
2... d5 {[%clk 0:04:57.9]} 3. Nd2 {[%clk 0:04:58.4]} 3... c5 {[%clk 0:04:54.9]}
4. dxc5 {[%clk 0:04:57.5]} 4... Bxc5 {[%clk 0:04:52.7]} 5. Bd3 {[%clk
0:04:57.1]} 5... dxe4 {[%clk 0:04:41]} 6. Nxe4 {[%clk 0:04:57]} 6... Bb6 {[%clk
0:04:36.3]} 7. Nf3 {[%clk 0:04:53.9]} 7... Nf6 {[%clk 0:04:35.4]} 8. Nxf6+
{[%clk 0:04:52.6]} 8... Qxf6 {[%clk 0:04:33.1]} 9. Bg5 {[%clk 0:04:52.1]} 9...
Bxf2+ {[%clk 0:04:06.4]} 10. Kxf2 {[%clk 0:04:49]} 10... Qxg5 {[%clk 0:04:05]}
11. Nxg5 {[%clk 0:04:47.4]} 1-0

[Event "Live Chess"]
[Site "Chess.com"]
[Date "2023.05.21"]
[Round "-"]
[White "MartynColebrook"]
[Black "diana21strabt"]
[Result "0-1"]
[WhiteElo "1085"]
[BlackElo "1751"]
[TimeControl "300"]
[EndTime "5:04:01 PDT"]
[Termination "diana21strabt won on time"]

1. e4 {[%clk 0:04:56.6]} 1... d5 {[%clk 0:04:58.9]} 2. exd5 {[%clk 0:04:54.8]}
2... Qxd5 {[%clk 0:04:58]} 3. Nc3 {[%clk 0:04:50.5]} 3... Qa5 {[%clk 0:04:57.2]}
4. d4 {[%clk 0:04:48]} 4... Nf6 {[%clk 0:04:56]} 5. Be3 {[%clk 0:04:41.3]} 5...
Bg4 {[%clk 0:04:55.2]} 6. Be2 {[%clk 0:04:33.5]} 6... Bxe2 {[%clk 0:04:53.7]} 7.
Qxe2 {[%clk 0:04:31.7]} 7... Nc6 {[%clk 0:04:52.5]} 8. Nf3 {[%clk 0:04:25.1]}
8... O-O-O {[%clk 0:04:51.7]} 9. O-O-O {[%clk 0:04:14.4]} 9... e6 {[%clk
0:04:32.1]} 10. Qc4 {[%clk 0:04:02.3]} 10... Bb4 {[%clk 0:04:23.2]} 11. Ne2
{[%clk 0:03:28.8]} 11... Qd5 {[%clk 0:03:58.8]} 12. Qxd5 {[%clk 0:03:25]} 12...
Nxd5 {[%clk 0:03:57.9]} 13. Bd2 {[%clk 0:03:14.5]} 13... Bxd2+ {[%clk
0:03:56.1]} 14. Rxd2 {[%clk 0:03:09.6]} 14... Ndb4 {[%clk 0:03:48.6]} 15. a3
{[%clk 0:02:59.9]} 15... Nd5 {[%clk 0:03:45.7]} 16. c4 {[%clk 0:02:57.3]} 16...
Nf6 {[%clk 0:03:41.6]} 17. b4 {[%clk 0:02:54.6]} 17... Ne4 {[%clk 0:03:39.1]}
18. Rc2 {[%clk 0:02:31.8]} 18... Nxf2 {[%clk 0:03:31]} 19. Rf1 {[%clk
0:02:28.3]} 19... Nd3+ {[%clk 0:03:17.6]} 20. Kd2 {[%clk 0:02:13.9]} 20... Ndxb4
{[%clk 0:03:11]} 21. axb4 {[%clk 0:02:08.8]} 21... Nxb4 {[%clk 0:03:10.1]} 22.
Rb2 {[%clk 0:02:01.2]} 22... a5 {[%clk 0:03:07.6]} 23. Ne5 {[%clk 0:01:53.6]}
23... f6 {[%clk 0:03:03.8]} 24. Nf7 {[%clk 0:01:51.6]} 24... Rhf8 {[%clk
0:02:59.6]} 25. Nxd8 {[%clk 0:01:49.6]} 25... Rxd8 {[%clk 0:02:58.7]} 26. g4
{[%clk 0:01:40.6]} 26... e5 {[%clk 0:02:57.4]} 27. Kc3 {[%clk 0:01:29.4]} 27...
exd4+ {[%clk 0:02:46.1]} 28. Nxd4 {[%clk 0:01:24.9]} 28... Re8 {[%clk
0:02:43.1]} 29. Re2 {[%clk 0:01:08.6]} 29... Rxe2 {[%clk 0:02:32.1]} 30. Nxe2
{[%clk 0:01:06.2]} 30... Kd7 {[%clk 0:02:31.4]} 31. Rd1+ {[%clk 0:00:57.4]}
31... Ke7 {[%clk 0:02:27.9]} 32. Nd4 {[%clk 0:00:54.5]} 32... Na6 {[%clk
0:02:19]} 33. Nf5+ {[%clk 0:00:47.8]} 33... Kf8 {[%clk 0:02:08.9]} 34. Rd8+
{[%clk 0:00:43.8]} 34... Kf7 {[%clk 0:02:07.8]} 35. Rd7+ {[%clk 0:00:41.2]}
35... Ke6 {[%clk 0:02:06.5]} 36. Rxg7 {[%clk 0:00:36.9]} 36... h5 {[%clk
0:02:04.1]} 37. h3 {[%clk 0:00:27.1]} 37... hxg4 {[%clk 0:02:02.4]} 38. hxg4
{[%clk 0:00:25.3]} 38... Ke5 {[%clk 0:02:01.2]} 39. Re7+ {[%clk 0:00:19.7]}
39... Kf4 {[%clk 0:01:59.7]} 40. Nd4 {[%clk 0:00:11.7]} 40... Kxg4 {[%clk
0:01:57.5]} 41. Re4+ {[%clk 0:00:09.3]} 41... Kg5 {[%clk 0:01:56.4]} 42. Ne6+
{[%clk 0:00:07.2]} 42... Kg6 {[%clk 0:01:55.4]} 43. Nf4+ {[%clk 0:00:05.7]}
43... Kf5 {[%clk 0:01:54.2]} 44. Rd4 {[%clk 0:00:02.6]} 44... c5 {[%clk
0:01:50]} 0-1

[Event "Live Chess"]
[Site "Chess.com"]
[Date "2023.05.21"]
[Round "-"]
[White "ossie57"]
[Black "f4nomore"]
[Result "1-0"]
[WhiteElo "1889"]
[BlackElo "1382"]
[TimeControl "300"]
[EndTime "5:04:03 PDT"]
[Termination "ossie57 won by resignation"]

1. d4 {[%clk 0:04:57.1]} 1... g6 {[%clk 0:04:58.4]} 2. Nc3 {[%clk 0:04:56.4]}
2... Bg7 {[%clk 0:04:58.3]} 3. e4 {[%clk 0:04:55.1]} 3... Nf6 {[%clk 0:04:58]}
4. Be3 {[%clk 0:04:54.6]} 4... O-O {[%clk 0:04:56.6]} 5. Qd2 {[%clk 0:04:54.2]}
5... Ng4 {[%clk 0:04:53]} 6. Bf4 {[%clk 0:04:49.1]} 6... e5 {[%clk 0:04:50.7]}
7. dxe5 {[%clk 0:04:48.1]} 7... Nxe5 {[%clk 0:04:47.4]} 8. Bh6 {[%clk 0:04:47]}
8... d6 {[%clk 0:04:42.1]} 9. Bxg7 {[%clk 0:04:46.2]} 9... Kxg7 {[%clk
0:04:40.7]} 10. O-O-O {[%clk 0:04:44.9]} 10... Nbc6 {[%clk 0:04:39.2]} 11. f4
{[%clk 0:04:43.4]} 11... Ng4 {[%clk 0:04:29.8]} 12. h3 {[%clk 0:04:41.5]} 12...
Nh6 {[%clk 0:04:28.2]} 13. g4 {[%clk 0:04:39.8]} 13... Qe8 {[%clk 0:04:15]} 14.
Nd5 {[%clk 0:04:35.7]} 14... Qxe4 {[%clk 0:04:04.7]} 15. Bg2 {[%clk 0:04:35]}
15... Qe6 {[%clk 0:03:57.2]} 16. Nxc7 {[%clk 0:04:23.4]} 16... Qxa2 {[%clk
0:03:52.9]} 17. Qc3+ {[%clk 0:04:22.8]} 17... f6 {[%clk 0:02:57.2]} 18. Bd5
{[%clk 0:04:20.9]} 18... Qa4 {[%clk 0:02:48.1]} 19. Nxa8 {[%clk 0:04:15.4]}
19... Qxf4+ {[%clk 0:02:44.9]} 20. Kb1 {[%clk 0:04:14.8]} 20... Ne5 {[%clk
0:02:32.2]} 21. Nc7 {[%clk 0:04:09.6]} 21... Bd7 {[%clk 0:02:25.4]} 22. Ne2
{[%clk 0:04:01.4]} 22... Qg5 {[%clk 0:02:11.5]} 23. Nd4 {[%clk 0:03:48]} 23...
b6 {[%clk 0:02:05.7]} 24. Nde6+ {[%clk 0:03:46.4]} 24... Bxe6 {[%clk 0:01:58.2]}
25. Nxe6+ {[%clk 0:03:46.3]} 1-0

[Event "Live Chess"]
[Site "Chess.com"]
[Date "2023.05.21"]
[Round "-"]
[White "Dhaydon19"]
[Black "OleksiyJr1"]
[Result "1-0"]
[WhiteElo "2701"]
[BlackElo "1005"]
[TimeControl "300"]
[EndTime "5:04:11 PDT"]
[Termination "Dhaydon19 won by checkmate"]

1. d4 {[%clk 0:04:59.2]} 1... Nf6 {[%clk 0:04:42.4]} 2. Nf3 {[%clk 0:04:58.2]}
2... c6 {[%clk 0:04:40.1]} 3. g3 {[%clk 0:04:57.5]} 3... d5 {[%clk 0:04:36.9]}
4. Bg2 {[%clk 0:04:56.9]} 4... e6 {[%clk 0:04:36]} 5. O-O {[%clk 0:04:56.5]}
5... Bd6 {[%clk 0:04:34.9]} 6. c3 {[%clk 0:04:56.2]} 6... Bd7 {[%clk 0:04:34.3]}
7. Nbd2 {[%clk 0:04:55.5]} 7... O-O {[%clk 0:04:30.5]} 8. Qc2 {[%clk 0:04:54.8]}
8... Re8 {[%clk 0:04:28.4]} 9. e4 {[%clk 0:04:54]} 9... dxe4 {[%clk 0:04:26.5]}
10. Nxe4 {[%clk 0:04:53.6]} 10... Nxe4 {[%clk 0:04:25.5]} 11. Qxe4 {[%clk
0:04:53.5]} 11... Qc7 {[%clk 0:04:15.7]} 12. Ng5 {[%clk 0:04:51.8]} 12... g6
{[%clk 0:04:11.5]} 13. Qh4 {[%clk 0:04:50.3]} 13... h5 {[%clk 0:04:07.6]} 14. g4
{[%clk 0:04:49.3]} 14... Be7 {[%clk 0:03:41.4]} 15. gxh5 {[%clk 0:04:45.2]}
15... Bxg5 {[%clk 0:03:08.7]} 16. Bxg5 {[%clk 0:04:42.9]} 16... Kg7 {[%clk
0:03:05.8]} 17. Bf6+ {[%clk 0:04:38.9]} 17... Kg8 {[%clk 0:03:03.6]} 18. hxg6
{[%clk 0:04:38.1]} 18... fxg6 {[%clk 0:03:02.6]} 19. Qh8+ {[%clk 0:04:35.2]}
19... Kf7 {[%clk 0:03:02.1]} 20. Qg7# {[%clk 0:04:34.3]} 1-0